fUSD/lending_fUSD_20250204
["ID","MTS","AMOUNT","RATE_DAILY","PERIOD"]
[351594742,1738651897074,-3721.0,9.298e-05,2]
[351594743,1738651897083,-150.0,9.308e-05,2]
[351594744,1738651897092,-3721.0,9.326e-05,2]
[351594745,1738651897102,-2731.7,9.349e-05,2]
[351594746,1738651897112,-2597.79,9.349e-05,2]
[351594747,1738651897125,-1961.37,9.349e-05,2]
[351594748,1738651897134,-1780.96,9.349e-05,2]
[351594749,1738651897143,-582.92,9.349e-05,2]
[351594750,1738651897154,-792.21,9.349e-05,2]
[351594751,1738651897163,-500.0,9.349e-05,2]
[351594752,1738651897173,-3084.21,9.349e-05,2]
[351594753,1738651897183,-2443.54,9.349e-05,2]
[351594754,1738651897192,-1608.35,9.349e-05,2]
[351594755,1738651897201,-3326.15,9.349e-05,2]
[351594756,1738651897211,-3802.84,9.349e-05,2]
[351594757,1738651897220,-1058.09,9.349e-05,2]
[351594758,1738651897229,-3333.66,9.349e-05,2]
[351594759,1738651897238,-3287.56,9.349e-05,2]
[351594760,1738651897247,-3109.99,9.349e-05,2]
[351594761,1738651897256,-3571.14,9.349e-05,2]
[351594762,1738651897266,-3362.34,9.349e-05,2]
[351594763,1738651897275,-1037.7,9.349e-05,2]
[351594764,1738651897289,-3517.11,9.349e-05,2]
[351594765,1738651897298,-500.0,9.349e-05,2]
[351594766,1738651897307,-2639.94,9.349e-05,2]
[351594767,1738651897317,-665.18,9.349e-05,2]
[351594768,1738651897327,-1806.83,9.349e-05,2]
[351594769,1738651897336,-500.0,9.349e-05,2]
[351594770,1738651897345,-2956.17,9.349e-05,2]
[351594771,1738651897355,-634.35,9.349e-05,2]
[351594772,1738651897365,-1174.99,9.349e-05,2]
[351594773,1738651897374,-505.68,9.349e-05,2]
[351594774,1738651897384,-3489.81,9.349e-05,2]
[351594775,1738651897393,-2290.92,9.349e-05,2]
[351594776,1738651897403,-2152.55,9.349e-05,2]
[351594777,1738651897412,-1492.95,9.349e-05,2]
[351594778,1738651897422,-500.0,9.35e-05,2]
[351594779,1738651897431,-1386.25,9.35e-05,2]
[351594780,1738651897441,-573.38,9.35e-05,2]
[351594781,1738651897450,-1162.27,9.35e-05,2]
[351594782,1738651897459,-886.96,9.35e-05,2]
[351594783,1738651897468,-1960.06,9.35e-05,2]
[351594784,1738651897478,-500.0,9.35e-05,2]
[351594785,1738651897487,-1816.95,9.35e-05,2]
[351594786,1738651897496,-507.74,9.35e-05,2]
[351594787,1738651897505,-1692.58,9.35e-05,2]
[351594788,1738651897514,-500.0,9.35e-05,2]
[351594789,1738651897523,-1233.2,9.35e-05,2]
[351594790,1738651897536,-837.33,9.35e-05,2]
[351594791,1738651897545,-500.0,9.35e-05,2]
[351594792,1738651897554,-1065.99,9.35e-05,2]
[351594793,1738651897563,-339.00268244,9.35e-05,2]
[351594794,1738651897572,-1129.84,9.35e-05,2]
[351594795,1738651897581,-1504.93,9.35e-05,2]
[351594796,1738651897591,-1321.61,9.35e-05,2]
[351594797,1738651897600,-1364.66,9.35e-05,2]
[351594798,1738651897609,-745.69,9.35e-05,2]
[351594799,1738651897618,-1579.1,9.35e-05,2]
[351594800,1738651897629,-1941.246848,9.35e-05,2]
[351594801,1738651897638,-629.84,9.35e-05,2]
[351594802,1738651897647,-1596.8,9.35e-05,2]
[351594803,1738651897656,-155.639737,9.35e-05,2]
[351594804,1738651897666,-500.0,9.35e-05,2]
[351594805,1738651897675,-986.75,9.35e-05,2]
[351594806,1738651897685,-879.57,9.35e-05,2]
[351594807,1738651897694,-500.0,9.35e-05,2]
[351594808,1738651897704,-500.0,9.35e-05,2]
[351594809,1738651897713,-628.73,9.35e-05,2]
[351594810,1738651897722,-500.0,9.35e-05,2]
[351594811,1738651897731,-1927.353361,9.35e-05,2]
[351594812,1738651897740,-500.0,9.35e-05,2]
[351594813,1738651897749,-628.63,9.35e-05,2]
[351594814,1738651897758,-1061.5,9.35e-05,2]
[351594815,1738651897768,-720.77,9.35e-05,2]
[351594816,1738651897777,-1583.49,9.35e-05,2]
[351594817,1738651897788,-1268.29,9.35e-05,2]
[351594818,1738651897797,-500.0,9.35e-05,2]
[351594819,1738651897806,-839.48,9.35e-05,2]
[351594820,1738651897816,-1688.73,9.35e-05,2]
[351594821,1738651897827,-1876.72,9.35e-05,2]
[351594822,1738651897837,-802.61,9.35e-05,2]
[351594823,1738651897847,-610.52,9.35e-05,2]
[351594824,1738651897855,-1840.23,9.35e-05,2]
[351594825,1738651897865,-622.05,9.35e-05,2]
[351594826,1738651897874,-1395.09,9.35e-05,2]
[351594827,1738651897883,-1984.41,9.35e-05,2]
[351594828,1738651897892,-500.0,9.35e-05,2]
[351594829,1738651897903,-573.41,9.35e-05,2]
[351594830,1738651897912,-500.0,9.35e-05,2]
[351594831,1738651897921,-500.0,9.35e-05,2]
[351594832,1738651897930,-702.06,9.35e-05,2]
[351594833,1738651897940,-1107.58,9.35e-05,2]
[351594834,1738651897949,-500.0,9.35e-05,2]
[351594835,1738651897958,-500.0,9.35e-05,2]
[351594836,1738651897967,-500.0,9.35e-05,2]
[351594837,1738651897977,-1023.87,9.35e-05,2]
[351594838,1738651897986,-500.0,9.35e-05,2]
[351594839,1738651897995,-2235.71,9.35e-05,2]
[351594840,1738651898004,-500.0,9.35e-05,2]
[351594841,1738651898014,-864.57,9.35e-05,2]
[351594842,1738651898023,-152.907822,9.35e-05,2]
[351594843,1738651898034,-1442.14,9.35e-05,2]
[351594844,1738651898043,-1526.09,9.35e-05,2]
[351594845,1738651898053,-500.0,9.35e-05,2]
[351594846,1738651898062,-749.13,9.35e-05,2]
[351594847,1738651898072,-500.0,9.35e-05,2]
[351594848,1738651898081,-871.17,9.35e-05,2]
[351594849,1738651898090,-1146.18,9.35e-05,2]
[351594850,1738651898099,-662.91,9.35e-05,2]
[351594851,1738651898112,-500.0,9.35e-05,2]
[351594852,1738651898122,-1009.64,9.35e-05,2]
[351594853,1738651898131,-2267.45,9.35e-05,2]
[351594854,1738651898141,-656.52,9.35e-05,2]
[351594855,1738651898151,-500.0,9.35e-05,2]
[351594856,1738651898160,-541.89,9.35e-05,2]
[351594857,1738651898170,-736.13,9.35e-05,2]
[351594858,1738651898179,-1760.16,9.35e-05,2]
[351594859,1738651898190,-2409.33,9.35e-05,2]
[351594860,1738651898199,-1852.54,9.35e-05,2]
[351594861,1738651898209,-2838.45,9.35e-05,2]
[351594862,1738651898218,-528.53,9.35e-05,2]
[351594863,1738651898228,-545.79,9.35e-05,2]
[351594864,1738651898237,-2890.01,9.35e-05,2]
[351594865,1738651898247,-500.0,9.35e-05,2]
[351594866,1738651898256,-2478.82,9.35e-05,2]
[351594867,1738651898265,-500.0,9.35e-05,2]
[351594868,1738651898275,-500.0,9.35e-05,2]
[351594869,1738651898287,-942.69,9.35e-05,2]
[351594870,1738651898297,-1246.43,9.35e-05,2]
[351594871,1738651898307,-500.0,9.35e-05,2]
[351594872,1738651898316,-2635.78,9.35e-05,2]
[351594873,1738651898326,-1761.95,9.35e-05,2]
[351594874,1738651898335,-500.0,9.35e-05,2]
[351594875,1738651898346,-793.19,9.35e-05,2]
[351594876,1738651898355,-2601.96,9.35e-05,2]
[351594877,1738651898366,-2705.26,9.35e-05,2]
[351594878,1738651898377,-1478.32,9.35e-05,2]
[351594879,1738651898387,-500.0,9.35e-05,2]
[351594880,1738651898397,-2173.93,9.35e-05,2]
[351594881,1738651898406,-2878.08,9.35e-05,2]
[351594882,1738651898417,-1170.31,9.35e-05,2]
[351594883,1738651898426,-500.0,9.35e-05,2]
[351594884,1738651898436,-2206.62,9.35e-05,2]
[351594885,1738651898446,-533.56,9.35e-05,2]
[351594886,1738651898455,-1881.39,9.35e-05,2]
[351594887,1738651898465,-2920.46,9.35e-05,2]
[351594888,1738651898475,-699.93,9.35e-05,2]
[351594889,1738651898484,-2040.45,9.35e-05,2]
[351594890,1738651898494,-500.0,9.35e-05,2]
[351594891,1738651898503,-2227.02,9.35e-05,2]
[351594892,1738651898513,-614.25,9.35e-05,2]
[351594893,1738651898522,-779.73,9.35e-05,2]
[351594894,1738651898534,-2094.99,9.35e-05,2]
[351594895,1738651898544,-1294.54,9.35e-05,2]
[351594896,1738651898554,-3429.21,9.35e-05,2]
[351594897,1738651898564,-579.6531756,9.35e-05,2]
[351594898,1738651898574,-500.0,9.35e-05,2]
[351594899,1738651898585,-500.0,9.35e-05,2]
[351594900,1738651898595,-2303.31,9.35e-05,2]
[351594901,1738651898609,-500.0,9.35e-05,2]
[351594902,1738651898619,-500.0,9.35e-05,2]
[351594903,1738651898628,-2519.6,9.35e-05,2]
[351594904,1738651898638,-596.06,9.35e-05,2]
[351594905,1738651898648,-540.23,9.35e-05,2]
[351594906,1738651898658,-3292.26,9.35e-05,2]
[351594907,1738651898667,-2116.61,9.35e-05,2]
[351594908,1738651898677,-4613.87,9.35e-05,2]
[351594909,1738651898687,-1583.36,9.35e-05,2]
[351594910,1738651898697,-3463.94,9.35e-05,2]
[351594911,1738651898707,-723.79,9.35e-05,2]
[351594912,1738651898717,-1828.01,9.35e-05,2]
[351594913,1738651898727,-500.0,9.35e-05,2]
[351594914,1738651898737,-2319.2,9.35e-05,2]
[351594915,1738651898747,-3655.1,9.35e-05,2]
[351594916,1738651898757,-500.0,9.35e-05,2]
[351594917,1738651898767,-500.0,9.35e-05,2]
[351594918,1738651898777,-2342.96,9.35e-05,2]
[351594919,1738651898788,-3953.69,9.35e-05,2]
[351594920,1738651898798,-1102.3,9.35e-05,2]
[351594921,1738651898808,-500.0,9.35e-05,2]
[351594922,1738651898818,-687.18,9.35e-05,2]
[351594923,1738651898828,-1381.74,9.35e-05,2]
[351594924,1738651898838,-500.0,9.35e-05,2]
[351594925,1738651898848,-2821.45,9.35e-05,2]
[351594926,1738651898857,-3735.43,9.35e-05,2]
[351594927,1738651898867,-500.0,9.35e-05,2]
[351594928,1738651898876,-578.47,9.35e-05,2]
[351594929,1738651898886,-4039.67,9.35e-05,2]
[351594930,1738651898896,-7208.32,9.35e-05,2]
[351594931,1738651898907,-500.0,9.35e-05,2]
[351594932,1738651898916,-4132.64,9.35e-05,2]
[351594933,1738651898926,-779.56,9.35e-05,2]
[351594934,1738651898936,-1096.53,9.35e-05,2]
[351594935,1738651898946,-695.86,9.35e-05,2]
[351594936,1738651898956,-500.0,9.35e-05,2]
[351594937,1738651898966,-1243.82,9.35e-05,2]
[351594938,1738651898977,-500.0,9.35e-05,2]
[351594939,1738651898988,-9349.12,9.35e-05,2]
[351594940,1738651898999,-767.74,9.35e-05,2]
[351594941,1738651899009,-1992.72,9.35e-05,2]
[351594942,1738651899019,-590.61,9.35e-05,2]
[351594943,1738651899030,-1043.64,9.35e-05,2]
[351594944,1738651899041,-500.0,9.35e-05,2]
[351594945,1738651899051,-500.0,9.35e-05,2]
[351594946,1738651899061,-3184.53,9.35e-05,2]
[351594947,1738651899070,-960.35,9.35e-05,2]
[351594948,1738651899080,-3457.48,9.35e-05,2]
[351594949,1738651899090,-543.03,9.35e-05,2]
[351594950,1738651899101,-567.99,9.35e-05,2]
[351594951,1738651899117,-500.0,9.35e-05,2]
[351594952,1738651899126,-1178.38,9.35e-05,2]
[351594953,1738651899136,-3649.67,9.35e-05,2]
[351594954,1738651899146,-568.89,9.35e-05,2]
[351594955,1738651899157,-3263.47,9.35e-05,2]
[351594956,1738651899167,-1509.83,9.35e-05,2]
[351594957,1738651899177,-2825.8,9.35e-05,2]
[351594958,1738651899191,-551.84,9.35e-05,2]
[351594959,1738651899201,-521.44,9.35e-05,2]
[351594960,1738651899211,-500.0,9.35e-05,2]
[351594961,1738651899221,-500.0,9.35e-05,2]
[351594962,1738651899231,-500.0,9.35e-05,2]
[351594963,1738651899241,-2253.1,9.35e-05,2]
[351594964,1738651899252,-531.39,9.35e-05,2]
[351594965,1738651899262,-2034.78,9.35e-05,2]
[351594966,1738651899272,-3059.11,9.35e-05,2]
[351594967,1738651899284,-1676.59,9.35e-05,2]
[351594968,1738651899294,-500.0,9.35e-05,2]
[351594969,1738651899304,-3067.77,9.35e-05,2]
[351594970,1738651899314,-811.45,9.35e-05,2]
[351594971,1738651899323,-704.39,9.35e-05,2]
[351594972,1738651899333,-1599.03,9.35e-05,2]
[351594973,1738651899343,-1503.5,9.35e-05,2]
[351594974,1738651899353,-1492.09,9.35e-05,2]
[351594975,1738651899363,-1793.52,9.35e-05,2]
[351594976,1738651899373,-309.58511145,9.35e-05,2]
[351594977,1738651899383,-532.79,9.35e-05,2]
[351594978,1738651899393,-602.67,9.35e-05,2]
[351594979,1738651899403,-500.0,9.35e-05,2]
[351594980,1738651899413,-626.12,9.35e-05,2]
[351594981,1738651899423,-508.24,9.35e-05,2]
[351594982,1738651899433,-3133.77,9.35e-05,2]
[351594983,1738651899443,-648.43,9.35e-05,2]
[351594984,1738651899453,-500.0,9.35e-05,2]
[351594985,1738651899464,-500.0,9.35e-05,2]
[351594986,1738651899474,-500.0,9.35e-05,2]
[351594987,1738651899484,-500.0,9.35e-05,2]
[351594988,1738651899494,-2093.99,9.35e-05,2]
[351594989,1738651899504,-1378.56,9.35e-05,2]
[351594990,1738651899514,-500.0,9.35e-05,2]
[351594991,1738651899524,-3288.7,9.35e-05,2]
[351594992,1738651899535,-500.0,9.35e-05,2]
[351594993,1738651899545,-570.54,9.35e-05,2]
[351594994,1738651899555,-3721.0,9.353e-05,2]
[351594995,1738651899569,-424.58696516,9.354e-05,2]
[351594996,1738651899584,-3438.53,9.36e-05,2]
[351594997,1738651899594,-500.0,9.36e-05,2]
[351594998,1738651899604,-1646.64,9.36e-05,2]
[351594999,1738651899614,-3741.7,9.36e-05,2]
[351595000,1738651899625,-3952.63,9.36e-05,2]
[351595001,1738651899634,-3680.29,9.36e-05,2]
[351595002,1738651899644,-500.0,9.36e-05,2]
[351595003,1738651899654,-4147.98,9.36e-05,2]
[351595004,1738651899664,-4138.09,9.36e-05,2]
[351595005,1738651899673,-2408.72,9.36e-05,2]
[351595006,1738651899684,-1057.21,9.36e-05,2]
[351595007,1738651899695,-2579.52,9.36e-05,2]
[351595008,1738651899706,-3070.89,9.36e-05,2]
[351595009,1738651899717,-2766.53,9.36e-05,2]
[351595010,1738651899728,-3378.45,9.36e-05,2]
[351595011,1738651899738,-1311.77,9.36e-05,2]
[351595012,1738651899748,-2863.92,9.36e-05,2]
[351595013,1738651899758,-4110.8,9.36e-05,2]
[351595014,1738651899769,-3875.56,9.36e-05,2]
[351595015,1738651899779,-2764.33,9.36e-05,2]
[351595016,1738651899790,-3587.47,9.36e-05,2]
[351595017,1738651899801,-717.35,9.36e-05,2]
[351595018,1738651899810,-2721.91,9.36e-05,2]
[351595019,1738651899821,-152.0,9.368e-05,6]
[351595020,1738651899830,-122156.19094444,9.37e-05,2]
[351595021,1738651899840,-15481.12054433,9.37e-05,2]
[351595022,1738651899851,-3721.0,9.38e-05,2]
[351595023,1738651899862,-3721.0,9.408e-05,2]
[351595024,1738651899872,-500.0,9.411e-05,2]
[351595025,1738651899882,-500.0,9.411e-05,2]
[351595026,1738651899892,-894.03,9.411e-05,2]
[351595027,1738651899902,-414.79959923,9.411e-05,2]
[351595028,1738651899912,-500.0,9.411e-05,2]
[351595029,1738651899922,-500.0,9.411e-05,2]
[351595030,1738651899932,-504.19940759,9.411e-05,2]
[351595031,1738651899943,-549.03,9.411e-05,2]
[351595032,1738651899953,-652.3,9.411e-05,2]
[351595033,1738651899963,-500.0,9.411e-05,2]
[351595034,1738651899973,-236.09340307,9.411e-05,2]
[351595035,1738651899983,-500.0,9.411e-05,2]
[351595036,1738651899993,-778.56,9.411e-05,2]
[351595037,1738651900003,-573.55,9.411e-05,2]
[351595038,1738651900013,-500.0,9.411e-05,2]
[351595039,1738651900024,-1319.98,9.411e-05,2]
[351595040,1738651900035,-500.0,9.411e-05,2]
[351595041,1738651900045,-578.36,9.412e-05,2]
[351595042,1738651900056,-500.0,9.412e-05,2]
[351595043,1738651900066,-500.0,9.412e-05,2]
[351595044,1738651900076,-500.0,9.412e-05,2]
[351595045,1738651900086,-255.34611218,9.412e-05,2]
[351595046,1738651900096,-500.0,9.412e-05,2]
[351595047,1738651900109,-500.0,9.412e-05,2]
[351595048,1738651900120,-500.0,9.412e-05,2]
[351595049,1738651900130,-710.18,9.412e-05,2]
[351595050,1738651900140,-522.69,9.412e-05,2]
[351595051,1738651900151,-603.54,9.412e-05,2]
[351595052,1738651900161,-623.15,9.412e-05,2]
[351595053,1738651900171,-500.0,9.412e-05,2]
[351595054,1738651900183,-1377.31,9.412e-05,2]
[351595055,1738651900193,-500.0,9.412e-05,2]
[351595056,1738651900203,-503.11615314,9.412e-05,2]
[351595057,1738651900214,-504.08259438,9.412e-05,2]
[351595058,1738651900224,-500.0,9.412e-05,2]
[351595059,1738651900236,-503.72422018,9.412e-05,2]
[351595060,1738651900246,-858.49,9.412e-05,2]
[351595061,1738651900256,-657.95,9.412e-05,2]
[351595062,1738651900266,-639.79,9.412e-05,2]
[351595063,1738651900276,-524.94,9.412e-05,2]
[351595064,1738651900288,-770.99,9.412e-05,2]
[351595065,1738651900299,-500.0,9.412e-05,2]
[351595066,1738651900309,-503.13986724,9.412e-05,2]
[351595067,1738651900320,-500.0,9.412e-05,2]
[351595068,1738651900330,-500.0,9.412e-05,2]
[351595069,1738651900341,-500.0,9.412e-05,2]
[351595070,1738651900351,-611.3,9.412e-05,2]
[351595071,1738651900549,-500.0,9.412e-05,2]
[351595072,1738651900564,-902.57,9.412e-05,2]
[351595073,1738651900574,-500.0,9.412e-05,2]
[351595074,1738651900590,-500.0,9.412e-05,2]
[351595075,1738651900601,-2189.52,9.412e-05,2]
[351595076,1738651900618,-500.0,9.412e-05,2]
[351595077,1738651900628,-1033.88,9.412e-05,2]
[351595078,1738651900638,-500.0,9.412e-05,2]
[351595079,1738651900648,-398.99416752,9.412e-05,2]
[351595080,1738651900657,-500.0,9.412e-05,2]
[351595081,1738651900668,-500.0,9.412e-05,2]
[351595082,1738651900677,-832.83,9.412e-05,2]
[351595083,1738651900688,-500.0,9.412e-05,2]
[351595084,1738651900698,-495.05370095,9.412e-05,2]
[351595085,1738651900707,-505.08,9.412e-05,2]
[351595086,1738651900717,-500.0,9.412e-05,2]
[351595087,1738651900726,-682.97,9.412e-05,2]
[351595088,1738651900734,-848.97,9.412e-05,2]
[351595089,1738651900743,-500.0,9.412e-05,2]
[351595090,1738651900752,-1302.8,9.412e-05,2]
[351595091,1738651900762,-500.0,9.412e-05,2]
[351595092,1738651900771,-503.32659104,9.412e-05,2]
[351595093,1738651900781,-1221.1,9.412e-05,2]
[351595094,1738651900791,-1301.56,9.412e-05,2]
[351595095,1738651900800,-500.0,9.412e-05,2]
[351595096,1738651900809,-869.74,9.412e-05,2]
[351595097,1738651900819,-374.44527543,9.412e-05,2]
[351595098,1738651900828,-1267.25,9.412e-05,2]
[351595099,1738651900838,-388.84870589,9.412e-05,2]
[351595100,1738651900847,-500.0,9.412e-05,2]
[351595101,1738651900858,-500.0,9.412e-05,2]
[351595102,1738651900867,-1350.38,9.412e-05,2]
[351595103,1738651900877,-1376.69,9.412e-05,2]
[351595104,1738651900887,-765.49,9.412e-05,2]
[351595105,1738651900896,-502.79685086,9.412e-05,2]
[351595106,1738651900906,-500.0,9.412e-05,2]
[351595107,1738651900918,-500.0,9.412e-05,2]
[351595108,1738651900936,-504.9193486,9.412e-05,2]
[351595109,1738651900958,-1594.6,9.412e-05,2]
[351595110,1738651900972,-1384.45,9.412e-05,2]
[351595111,1738651900983,-2328.86,9.412e-05,2]
[351595112,1738651900993,-662.7,9.412e-05,2]
[351595113,1738651901003,-500.0,9.412e-05,2]
[351595114,1738651901012,-1335.29,9.412e-05,2]
[351595115,1738651901022,-500.0,9.412e-05,2]
[351595116,1738651901032,-166.05072058,9.412e-05,2]
[351595117,1738651901042,-500.0,9.412e-05,2]
[351595118,1738651901052,-659.98,9.412e-05,2]
[351595119,1738651901062,-500.0,9.412e-05,2]
[351595120,1738651901078,-2449.75,9.412e-05,2]
[351595121,1738651901088,-612.87,9.412e-05,2]
[351595122,1738651901099,-1097.71,9.412e-05,2]
[351595123,1738651901108,-710.91,9.412e-05,2]
[351595124,1738651901121,-543.58,9.412e-05,2]
[351595125,1738651901131,-500.0,9.412e-05,2]
[351595126,1738651901140,-1882.1,9.412e-05,2]
[351595127,1738651901150,-500.0,9.412e-05,2]
[351595128,1738651901161,-2099.03,9.412e-05,2]
[351595129,1738651901171,-698.47,9.412e-05,2]
[351595130,1738651901180,-500.0,9.412e-05,2]
[351595131,1738651901191,-500.0,9.412e-05,2]
[351595132,1738651901200,-503.52097265,9.412e-05,2]
[351595133,1738651901210,-500.0,9.412e-05,2]
[351595134,1738651901220,-613.08,9.412e-05,2]
[351595135,1738651901229,-1113.29,9.412e-05,2]
[351595136,1738651901239,-504.88363672,9.412e-05,2]
[351595137,1738651901248,-500.0,9.412e-05,2]
[351595138,1738651901257,-500.0,9.412e-05,2]
[351595139,1738651901267,-1797.38,9.412e-05,2]
[351595140,1738651901276,-500.0,9.412e-05,2]
[351595141,1738651901285,-218.36351634,9.412e-05,2]
[351595142,1738651901295,-739.28,9.412e-05,2]
[351595143,1738651901304,-511.08425563,9.412e-05,2]
[351595144,1738651901313,-500.0,9.412e-05,2]
[351595145,1738651901323,-1290.62,9.412e-05,2]
[351595146,1738651901332,-500.0,9.412e-05,2]
[351595147,1738651901341,-500.0,9.412e-05,2]
[351595148,1738651901351,-500.0,9.412e-05,2]
[351595149,1738651901360,-500.0,9.412e-05,2]
[351595150,1738651901369,-500.0,9.412e-05,2]
[351595151,1738651901379,-1811.38,9.412e-05,2]
[351595152,1738651901388,-631.18,9.412e-05,2]
[351595153,1738651901397,-1254.13,9.412e-05,2]
[351595154,1738651901406,-500.0,9.412e-05,2]
[351595155,1738651901415,-500.0,9.412e-05,2]
[351595156,1738651901424,-1097.17,9.412e-05,2]
[351595157,1738651901434,-991.82,9.412e-05,2]
[351595158,1738651901443,-500.0,9.412e-05,2]
[351595159,1738651901452,-500.0,9.412e-05,2]
[351595160,1738651901461,-500.0,9.412e-05,2]
[351595161,1738651901471,-627.77,9.412e-05,2]
[351595162,1738651901480,-500.0,9.412e-05,2]
[351595163,1738651901489,-1787.47,9.412e-05,2]
[351595164,1738651901498,-2221.8,9.412e-05,2]
[351595165,1738651901507,-804.27,9.412e-05,2]
[351595166,1738651901517,-1310.71,9.412e-05,2]
[351595167,1738651901526,-500.0,9.412e-05,2]
[351595168,1738651901535,-500.0,9.412e-05,2]
[351595169,1738651901545,-3296.39,9.412e-05,2]
[351595170,1738651901554,-500.0,9.412e-05,2]
[351595171,1738651901563,-562.33,9.412e-05,2]
[351595172,1738651901572,-500.0,9.412e-05,2]
[351595173,1738651901581,-790.63,9.412e-05,2]
[351595174,1738651901590,-1182.99,9.412e-05,2]
[351595175,1738651901599,-1297.64,9.412e-05,2]
[351595176,1738651901608,-774.54,9.412e-05,2]
[351595177,1738651901618,-504.42462413,9.412e-05,2]
[351595178,1738651901627,-727.93,9.412e-05,2]
[351595179,1738651901636,-500.0,9.412e-05,2]
[351595180,1738651901645,-500.0,9.412e-05,2]
[351595181,1738651901654,-1926.99,9.412e-05,2]
[351595182,1738651901664,-1409.12,9.412e-05,2]
[351595183,1738651901674,-500.0,9.412e-05,2]
[351595184,1738651901684,-502.11927645,9.412e-05,2]
[351595185,1738651901693,-1967.91,9.412e-05,2]
[351595186,1738651901702,-1137.79,9.412e-05,2]
[351595187,1738651901716,-500.0,9.412e-05,2]
[351595188,1738651901725,-500.0,9.412e-05,2]
[351595189,1738651901734,-500.0,9.412e-05,2]
[351595190,1738651901743,-1241.55,9.412e-05,2]
[351595191,1738651901753,-500.0,9.412e-05,2]
[351595192,1738651901762,-582.03,9.412e-05,2]
[351595193,1738651901771,-504.41049495,9.412e-05,2]
[351595194,1738651901780,-502.50288968,9.412e-05,2]
[351595195,1738651901797,-500.0,9.412e-05,2]
[351595196,1738651901806,-504.44513849,9.412e-05,2]
[351595197,1738651901815,-2472.38,9.412e-05,2]
[351595198,1738651901824,-500.0,9.412e-05,2]
[351595199,1738651901833,-502.90187445,9.412e-05,2]
[351595200,1738651901843,-500.0,9.412e-05,2]
[351595201,1738651901852,-551.09,9.412e-05,2]
[351595202,1738651901863,-503.17739028,9.412e-05,2]
[351595203,1738651901872,-1439.06,9.412e-05,2]
[351595204,1738651901882,-500.0,9.412e-05,2]
[351595205,1738651901891,-1487.13,9.412e-05,2]
[351595206,1738651901901,-500.0,9.412e-05,2]
[351595207,1738651901911,-503.68533834,9.412e-05,2]
[351595208,1738651901920,-1607.5,9.412e-05,2]
[351595209,1738651901930,-3353.26,9.412e-05,2]
[351595210,1738651901949,-500.0,9.412e-05,2]
[351595211,1738651901961,-1710.03,9.412e-05,2]
[351595212,1738651901970,-678.92,9.412e-05,2]
[351595213,1738651901980,-504.73558479,9.412e-05,2]
[351595214,1738651901990,-1755.84,9.412e-05,2]
[351595215,1738651902000,-503.67289052,9.412e-05,2]
[351595216,1738651902010,-2208.53,9.412e-05,2]
[351595217,1738651902020,-762.71,9.412e-05,2]
[351595218,1738651902030,-500.0,9.412e-05,2]
[351595219,1738651902045,-562.92,9.412e-05,2]
[351595220,1738651902055,-2000.55,9.412e-05,2]
[351595221,1738651902064,-521.56,9.412e-05,2]
[351595222,1738651902075,-1457.81,9.412e-05,2]
[351595223,1738651902085,-665.54,9.412e-05,2]
[351595224,1738651902095,-1064.1,9.412e-05,2]
[351595225,1738651902106,-264.54563271,9.412e-05,2]
[351595226,1738651902120,-500.0,9.412e-05,2]
[351595227,1738651902131,-3252.58,9.412e-05,2]
[351595228,1738651902141,-500.0,9.412e-05,2]
[351595229,1738651902152,-506.01822282,9.412e-05,2]
[351595230,1738651902162,-500.0,9.412e-05,2]
[351595231,1738651902172,-774.04,9.412e-05,2]
[351595232,1738651902183,-500.0,9.412e-05,2]
[351595233,1738651902194,-1356.21,9.412e-05,2]
[351595234,1738651902205,-500.0,9.412e-05,2]
[351595235,1738651902215,-500.0,9.412e-05,2]
[351595236,1738651902225,-1161.1,9.412e-05,2]
[351595237,1738651902235,-500.0,9.412e-05,2]
[351595238,1738651902245,-1271.77,9.412e-05,2]
[351595239,1738651902254,-1243.17,9.412e-05,2]
[351595240,1738651902264,-810.41,9.412e-05,2]
[351595241,1738651902274,-500.0,9.412e-05,2]